[Event "Schack-SM 2024: Mastarklassen"]
[Site "Fortnox Arena, Hejaregatan 5, Vaxjo, Sweden"]
[Date "2024.07.03"]
[Round "5.4"]
[White "Tuomainen, Felix"]
[Black "Joensson, Jacob"]
[Result "1-0"]
[TimeControl "90 minutes for 40 moves + 30 minutes for the rest of the game + 30 seconds per move from move one."]
[WhiteTitle "FM"]
[WhiteElo "2255"]
[BlackElo "2068"]

1. d4 {[%clk 01:30:58]} {[%emt 00:00:03]} Nf6 {[%clk 01:30:55]} {[%emt
00:00:03]} 2. c4 {[%clk 01:31:25]} {[%emt 00:00:04]} e6 {[%clk 01:31:22]}
{[%emt 00:00:02]} 3. Nc3 {[%clk 01:31:51]} {[%emt 00:00:04]} d5 {[%clk
01:31:49]} {[%emt 00:00:05]} 4. Nf3 {[%clk 01:31:53]} {[%emt 00:00:27]} Be7
{[%clk 01:32:13]} {[%emt 00:00:06]} 5. Bg5 {[%clk 01:32:14]} {[%emt 00:00:08]}
O-O {[%clk 01:32:35]} {[%emt 00:00:09]} 6. e3 {[%clk 01:32:30]} {[%emt
00:00:13]} h6 {[%clk 01:32:58]} {[%emt 00:00:07]} 7. Bxf6 {[%clk 01:32:52]}
{[%emt 00:00:08]} Bxf6 {[%clk 01:33:23]} {[%emt 00:00:05]} 8. Rc1 {[%clk
01:33:15]} {[%emt 00:00:08]} c5 {[%clk 01:23:03]} {[%emt 00:10:49]} 9. cxd5
{[%clk 01:33:11]} {[%emt 00:00:34]} cxd4 {[%clk 01:23:18]} {[%emt 00:00:15]} 10.
Nxd4 {[%clk 01:33:14]} {[%emt 00:00:28]} exd5 {[%clk 01:23:40]} {[%emt
00:00:07]} 11. Bb5 {[%clk 01:23:01]} {[%emt 00:10:42]} Qd6 {[%clk 01:07:24]}
{[%emt 00:16:46]} 12. O-O {[%clk 01:22:08]} {[%emt 00:01:23]} Nc6 {[%clk
01:06:47]} {[%emt 00:01:07]} 13. Nb3 {[%clk 01:15:11]} {[%emt 00:07:27]} Rd8
{[%clk 01:04:37]} {[%emt 00:02:41]} 14. Qc2 {[%clk 01:12:59]} {[%emt 00:02:42]}
Be5 {[%clk 00:51:24]} {[%emt 00:13:42]} 15. f4 {[%clk 01:11:14]} {[%emt
00:02:16]} Bxc3 {[%clk 00:51:03]} {[%emt 00:00:52]} 16. bxc3 {[%clk 01:10:32]}
{[%emt 00:01:12]} Ne7 {[%clk 00:47:45]} {[%emt 00:03:49]} 17. Nd4 {[%clk
01:09:20]} {[%emt 00:01:41]} Bd7 {[%clk 00:46:26]} {[%emt 00:01:49]} 18. Bd3
{[%clk 01:07:30]} {[%emt 00:02:20]} Rac8 {[%clk 00:45:44]} {[%emt 00:01:13]} 19.
Qe2 {[%clk 01:01:04]} {[%emt 00:06:54]} Rc5 {[%clk 00:39:55]} {[%emt 00:06:21]}
20. Bb1 {[%clk 00:58:41]} {[%emt 00:02:48]} Qa6 {[%clk 00:36:20]} {[%emt
00:04:09]} 21. Qd2 {[%clk 00:52:51]} {[%emt 00:06:20]} Rdc8 {[%clk 00:34:09]}
{[%emt 00:02:42]} 22. Bd3 {[%clk 00:52:39]} {[%emt 00:00:41]} Qf6 {[%clk
00:32:56]} {[%emt 00:01:43]} 23. f5 {[%clk 00:51:07]} {[%emt 00:02:02]} a6
{[%clk 00:30:44]} {[%emt 00:02:42]} 24. Bb1 {[%clk 00:42:18]} {[%emt 00:09:18]}
R5c7 {[%clk 00:29:06]} {[%emt 00:02:10]} 25. a3 {[%clk 00:38:43]} {[%emt
00:04:06]} Bb5 {[%clk 00:22:05]} {[%emt 00:07:30]} 26. Rf4 {[%clk 00:38:21]}
{[%emt 00:00:50]} Bc4 {[%clk 00:21:52]} {[%emt 00:00:44]} 27. h3 {[%clk
00:36:52]} {[%emt 00:02:00]} Nc6 {[%clk 00:21:29]} {[%emt 00:00:53]} 28. Re1
{[%clk 00:34:39]} {[%emt 00:02:42]} Re7 {[%clk 00:19:19]} {[%emt 00:02:40]} 29.
Nxc6 {[%clk 00:23:47]} {[%emt 00:11:22]} bxc6 {[%clk 00:18:24]} {[%emt
00:01:25]} 30. Bd3 {[%clk 00:22:22]} {[%emt 00:01:55]} Bxd3 {[%clk 00:17:24]}
{[%emt 00:01:31]} 31. Qxd3 {[%clk 00:22:51]} {[%emt 00:00:01]} Rce8 {[%clk
00:17:45]} {[%emt 00:00:09]} 32. c4 {[%clk 00:18:46]} {[%emt 00:04:35]} Re4
{[%clk 00:15:21]} {[%emt 00:02:53]} 33. Rxe4 {[%clk 00:16:57]} {[%emt
00:02:21]} dxe4 {[%clk 00:15:43]} {[%emt 00:00:07]} 34. Qd7 {[%clk 00:16:19]}
{[%emt 00:01:05]} Rd8 {[%clk 00:15:36]} {[%emt 00:00:39]} 35. Qc7 {[%clk
00:16:34]} {[%emt 00:00:14]} Qd6 {[%clk 00:15:52]} {[%emt 00:00:15]} 36. Qa7
{[%clk 00:10:20]} {[%emt 00:06:41]} Qxa3 {[%clk 00:09:21]} {[%emt 00:07:03]} 37.
Qc7 {[%clk 00:06:08]} {[%emt 00:04:43]} Qd6 {[%clk 00:08:32]} {[%emt 00:01:20]}
38. Qxd6 {[%clk 00:06:28]} {[%emt 00:00:10]} Rxd6 {[%clk 00:08:57]} {[%emt
00:00:04]} 39. Ra1 {[%clk 00:06:56]} {[%emt 00:00:03]} c5 {[%clk 00:08:58]}
{[%emt 00:00:28]} 40. Ra5 {[%clk 00:07:10]} {[%emt 00:00:17]} Rc6 {[%clk
00:09:22]} {[%emt 00:00:06]} 41. Kf2 {[%clk 00:07:16]} {[%emt 00:00:24]} g5
{[%clk 00:27:57]} {[%emt 00:11:54]} 42. fxg6 {[%clk 00:36:50]} {[%emt
00:00:57]} fxg6 {[%clk 00:23:58]} {[%emt 00:04:28]} 43. Kg3 {[%clk 00:37:07]}
{[%emt 00:00:14]} Kf7 {[%clk 00:24:01]} {[%emt 00:00:26]} 44. Kf4 {[%clk
00:37:15]} {[%emt 00:00:23]} Re6 {[%clk 00:24:22]} {[%emt 00:00:09]} 45. Rxc5
{[%clk 00:37:08]} {[%emt 00:00:37]} Kf6 {[%clk 00:24:11]} {[%emt 00:00:41]} 46.
h4 {[%clk 00:37:09]} {[%emt 00:00:28]} h5 {[%clk 00:22:30]} {[%emt 00:02:11]}
47. g3 {[%clk 00:35:02]} {[%emt 00:02:36]} Ke7 {[%clk 00:22:04]} {[%emt
00:00:58]} 48. Rd5 {[%clk 00:30:30]} {[%emt 00:04:58]} Kf6 {[%clk 00:20:21]}
{[%emt 00:02:16]} 49. c5 {[%clk 00:28:09]} {[%emt 00:02:51]} a5 {[%clk
00:19:48]} {[%emt 00:01:03]} 50. Rd4 {[%clk 00:26:41]} {[%emt 00:01:56]} Rc6
{[%clk 00:18:33]} {[%emt 00:01:46]} 51. Rc4 {[%clk 00:26:56]} {[%emt 00:00:11]}
a4 {[%clk 00:18:36]} {[%emt 00:00:32]} 52. Rxa4 {[%clk 00:27:13]} {[%emt
00:00:12]} Rxc5 {[%clk 00:18:59]} {[%emt 00:00:07]} 53. Ra6+ {[%clk 00:26:42]}
{[%emt 00:01:01]} Kf7 {[%clk 00:19:14]} {[%emt 00:00:16]} 54. Kxe4 {[%clk
00:26:53]} {[%emt 00:00:20]} g5 {[%clk 00:19:10]} {[%emt 00:00:34]} 55. hxg5
{[%clk 00:25:57]} {[%emt 00:01:26]} Rxg5 {[%clk 00:19:33]} {[%emt 00:00:06]} 56.
Kf4 {[%clk 00:26:09]} {[%emt 00:00:16]} Rg4+ {[%clk 00:19:58]} {[%emt
00:00:08]} 57. Kf3 {[%clk 00:26:34]} {[%emt 00:00:04]} Rg5 {[%clk 00:20:22]}
{[%emt 00:00:06]} 58. e4 {[%clk 00:26:38]} {[%emt 00:00:26]} Kg7 {[%clk
00:20:08]} {[%emt 00:00:43]} 59. Rd6 {[%clk 00:25:24]} {[%emt 00:01:41]} Rg4
{[%clk 00:19:26]} {[%emt 00:01:16]} 60. Rd5 {[%clk 00:25:24]} {[%emt 00:00:28]}
Kg6 {[%clk 00:19:35]} {[%emt 00:00:23]} 61. Rf5 {[%clk 00:25:10]} {[%emt
00:00:42]} Kh6 {[%clk 00:19:38]} {[%emt 00:00:28]} 62. e5 {[%clk 00:21:13]}
{[%emt 00:04:29]} Kg6 {[%clk 00:19:06]} {[%emt 00:01:00]} 63. Rf4 {[%clk
00:18:26]} {[%emt 00:03:15]} Rg5 {[%clk 00:19:31]} {[%emt 00:00:07]} 64. e6
{[%clk 00:18:38]} {[%emt 00:00:15]} Re5 {[%clk 00:19:17]} {[%emt 00:00:47]} 65.
Re4 {[%clk 00:19:04]} {[%emt 00:00:05]} Rf5+ {[%clk 00:19:40]} {[%emt
00:00:07]} 66. Ke3 {[%clk 00:19:26]} {[%emt 00:00:05]} Rf8 {[%clk 00:20:06]}
{[%emt 00:00:05]} 67. Kd4 {[%clk 00:19:36]} {[%emt 00:00:21]} Kf6 {[%clk
00:20:09]} {[%emt 00:00:28]} 68. Rf4+ {[%clk 00:19:52]} {[%emt 00:00:14]} Ke7
{[%clk 00:20:34]} {[%emt 00:00:05]} 69. Rxf8 {[%clk 00:20:14]} {[%emt
00:00:09]} Kxf8 {[%clk 00:20:59]} {[%emt 00:00:04]} 70. Ke5 {[%clk 00:20:23]}
{[%emt 00:00:20]} Ke7 {[%clk 00:21:02]} {[%emt 00:00:29]} 71. Kf5 {[%clk
00:20:46]} 1-0

[Event "Schack-SM 2024: Mastarklassen"]
[Site "Fortnox Arena, Hejaregatan 5, Vaxjo, Sweden"]
[Date "2024.07.03"]
[Round "5.5"]
[White "Walinder, Lars"]
[Black "Mardell, Jimmy"]
[Result "0-1"]
[TimeControl "90 minutes for 40 moves + 30 minutes for the rest of the game + 30 seconds per move from move one."]
[WhiteTitle "FM"]
[WhiteElo "2233"]
[BlackElo "2186"]

1. c4 {[%clk 01:30:58]} {[%emt 00:25:07]} c6 {[%clk 01:30:54]} {[%emt
00:00:07]} 2. Nf3 {[%emt 00:00:19]} d5 {[%clk 01:31:17]} 3. e3 {[%clk
01:31:37]} {[%emt 00:00:09]} Nf6 {[%clk 01:31:34]} {[%emt 00:00:13]} 4. Nc3
{[%clk 01:31:41]} {[%emt 00:00:25]} a6 {[%clk 01:31:50]} {[%emt 00:00:15]} 5.
Qc2 {[%clk 01:29:56]} {[%emt 00:02:15]} e6 {[%clk 01:31:30]} {[%emt 00:00:51]}
6. b3 {[%clk 01:28:23]} {[%emt 00:02:02]} c5 {[%clk 01:30:36]} {[%emt
00:01:25]} 7. cxd5 {[%clk 01:26:15]} {[%emt 00:02:36]} exd5 {[%clk 01:30:43]}
{[%emt 00:00:22]} 8. d4 {[%clk 01:26:33]} {[%emt 00:00:12]} cxd4 {[%clk
01:29:18]} {[%emt 00:01:55]} 9. Nxd4 {[%clk 01:24:53]} {[%emt 00:02:11]} Bd6
{[%clk 01:27:23]} {[%emt 00:02:23]} 10. Be2 {[%clk 01:22:23]} {[%emt 00:03:00]}
O-O {[%clk 01:25:14]} {[%emt 00:02:41]} 11. O-O {[%clk 01:21:40]} {[%emt
00:01:12]} Re8 {[%clk 01:14:02]} {[%emt 00:11:42]} 12. Bb2 {[%clk 01:15:07]}
{[%emt 00:07:04]} Nc6 {[%clk 01:09:00]} {[%emt 00:05:32]} 13. Rad1 {[%clk
01:11:14]} {[%emt 00:04:23]} Ng4 {[%clk 00:59:38]} {[%emt 00:09:52]} 14. Nf3
{[%clk 00:57:36]} {[%emt 00:14:07]} d4 {[%clk 00:22:44]} {[%emt 00:37:24]} 15.
exd4 {[%clk 00:56:54]} {[%emt 00:01:12]} Nb4 {[%clk 00:23:01]} {[%emt
00:00:12]} 16. Qd2 {[%clk 00:51:10]} {[%emt 00:06:14]} Bf5 {[%clk 00:10:35]}
{[%emt 00:12:58]} 17. h3 {[%clk 00:38:42]} {[%emt 00:12:58]} Nf6 {[%clk
00:10:55]} {[%emt 00:00:09]} 18. d5 {[%clk 00:38:14]} {[%emt 00:00:58]} Bc2
{[%clk 00:07:18]} {[%emt 00:04:07]} 19. Rc1 {[%clk 00:36:14]} {[%emt 00:02:29]}
Bg6 {[%clk 00:07:35]} {[%emt 00:00:13]} 20. Rcd1 {[%clk 00:11:01]} {[%emt
00:25:43]} Qb8 {[%clk 00:05:10]} {[%emt 00:02:57]} 21. Qd4 {[%clk 00:11:04]}
{[%emt 00:00:27]} Nc2 {[%clk 00:03:41]} {[%emt 00:01:59]} 22. Qh4 {[%clk
00:10:49]} {[%emt 00:00:44]} Ne4 {[%clk 00:03:01]} {[%emt 00:01:11]} 23. Nxe4
{[%clk 00:02:30]} {[%emt 00:08:48]} Rxe4 {[%clk 00:03:22]} {[%emt 00:00:11]} 24.
Qg5 {[%clk 00:02:35]} {[%emt 00:00:22]} Bf4 {[%clk 00:01:56]} {[%emt 00:01:58]}
25. Be5 {[%clk 00:02:30]} {[%emt 00:00:36]} Bxg5 {[%clk 00:01:48]} {[%emt
00:00:37]} 26. Bxb8 {[%clk 00:02:44]} {[%emt 00:00:16]} Rxe2 {[%clk 00:02:00]}
{[%emt 00:00:18]} 27. Bc7 {[%clk 00:02:44]} {[%emt 00:00:30]} Bd8 {[%clk
00:02:23]} {[%emt 00:00:07]} 28. d6 {[%clk 00:03:03]} {[%emt 00:00:11]} Rc8
{[%clk 00:01:49]} {[%emt 00:01:03]} 0-1

[Event "Schack-SM 2024: Mastarklassen"]
[Site "Fortnox Arena, Hejaregatan 5, Vaxjo, Sweden"]
[Date "2024.07.03"]
[Round "5.6"]
[White "Lindborg, Patrik"]
[Black "Liden, Tommy"]
[Result "0-1"]
[TimeControl "90 minutes for 40 moves + 30 minutes for the rest of the game + 30 seconds per move from move one."]
[WhiteElo "2162"]
[BlackElo "2123"]

1. d4 {[%clk 01:30:58]} {[%emt 00:00:02]} d5 {[%clk 01:30:57]} {[%emt
00:00:04]} 2. c4 {[%clk 01:31:18]} {[%emt 00:00:09]} e6 {[%clk 01:31:22]}
{[%emt 00:00:06]} 3. Nc3 {[%clk 01:31:29]} {[%emt 00:00:19]} c6 {[%clk
01:31:47]} {[%emt 00:00:05]} 4. Nf3 {[%clk 01:31:46]} {[%emt 00:00:13]} dxc4
{[%clk 01:32:12]} {[%emt 00:00:06]} 5. a4 {[%clk 01:31:48]} {[%emt 00:00:27]}
Bb4 {[%clk 01:32:25]} {[%emt 00:00:17]} 6. e3 {[%clk 01:31:49]} {[%emt
00:00:28]} b5 {[%clk 01:32:38]} {[%emt 00:00:18]} 7. Bd2 {[%clk 01:31:31]}
{[%emt 00:00:47]} a5 {[%clk 01:32:52]} {[%emt 00:00:17]} 8. axb5 {[%clk
01:31:05]} {[%emt 00:00:53]} Bxc3 {[%clk 01:33:07]} {[%emt 00:00:16]} 9. Bxc3
{[%clk 01:31:14]} {[%emt 00:00:22]} cxb5 {[%clk 01:33:27]} {[%emt 00:00:11]} 10.
b3 {[%clk 01:31:32]} {[%emt 00:00:10]} Bb7 {[%clk 01:33:42]} {[%emt 00:00:15]}
11. bxc4 {[%clk 01:31:51]} {[%emt 00:00:11]} b4 {[%clk 01:34:06]} {[%emt
00:00:07]} 12. Bb2 {[%clk 01:29:28]} {[%emt 00:02:52]} Nf6 {[%clk 01:34:29]}
{[%emt 00:00:07]} 13. Bd3 {[%clk 01:18:25]} {[%emt 00:11:34]} O-O {[%clk
01:33:30]} {[%emt 00:01:30]} 14. O-O {[%clk 01:15:47]} {[%emt 00:03:06]} Nbd7
{[%clk 01:33:55]} {[%emt 00:00:05]} 15. Nd2 {[%clk 01:08:21]} {[%emt 00:07:56]}
Qc7 {[%clk 01:33:28]} {[%emt 00:00:56]} 16. f4 {[%clk 01:03:03]} {[%emt
00:05:48]} a4 {[%clk 01:32:02]} {[%emt 00:01:56]} 17. e4 {[%clk 00:58:58]}
{[%emt 00:04:35]} a3 {[%clk 01:30:30]} {[%emt 00:02:02]} 18. Bc1 {[%clk
00:59:14]} {[%emt 00:00:13]} Qd6 {[%clk 01:26:56]} {[%emt 00:04:04]} 19. d5
{[%clk 00:57:43]} {[%emt 00:02:01]} exd5 {[%clk 01:20:16]} {[%emt 00:07:11]} 20.
cxd5 {[%clk 00:53:34]} {[%emt 00:04:37]} Ba6 {[%clk 00:58:43]} {[%emt
00:22:04]} 21. Bxa6 {[%clk 00:46:23]} {[%emt 00:07:42]} Rxa6 {[%clk 00:57:44]}
{[%emt 00:01:30]} 22. Qe2 {[%clk 00:44:18]} {[%emt 00:02:33]} Re8 {[%clk
00:54:15]} {[%emt 00:04:00]} 23. Kh1 {[%clk 00:36:42]} {[%emt 00:08:06]} Nxd5
{[%clk 00:53:37]} {[%emt 00:01:09]} 24. Nc4 {[%clk 00:36:38]} {[%emt 00:00:34]}
Qf6 {[%clk 00:50:30]} {[%emt 00:03:35]} 25. Ne5 {[%clk 00:35:52]} {[%emt
00:01:16]} Nc3 {[%clk 00:48:40]} {[%emt 00:02:20]} 26. Qc4 {[%clk 00:35:15]}
{[%emt 00:01:07]} Nxe5 {[%clk 00:43:38]} {[%emt 00:05:32]} 27. fxe5 {[%clk
00:35:00]} {[%emt 00:00:46]} Rc6 {[%clk 00:43:59]} {[%emt 00:00:10]} 28. Qd3
{[%clk 00:27:59]} {[%emt 00:07:30]} Qxe5 {[%clk 00:38:57]} {[%emt 00:05:31]} 29.
Bd2 {[%clk 00:27:27]} {[%emt 00:01:03]} h6 {[%clk 00:31:47]} {[%emt 00:07:40]}
30. Qd7 {[%clk 00:23:39]} {[%emt 00:04:17]} Rc7 {[%clk 00:29:23]} {[%emt
00:02:56]} 31. Qg4 {[%clk 00:20:51]} {[%emt 00:03:16]} Qe6 {[%clk 00:23:44]}
{[%emt 00:06:09]} 32. Qf3 {[%clk 00:15:53]} {[%emt 00:05:30]} Rd8 {[%clk
00:21:34]} {[%emt 00:02:39]} 33. Bf4 {[%clk 00:14:52]} {[%emt 00:01:30]} Rcd7
{[%clk 00:18:44]} {[%emt 00:03:21]} 34. e5 {[%clk 00:13:05]} {[%emt 00:02:16]}
a2 {[%clk 00:17:28]} {[%emt 00:01:46]} 35. h3 {[%clk 00:11:40]} {[%emt
00:01:56]} Rd3 {[%clk 00:14:04]} {[%emt 00:03:53]} 36. Qb7 {[%clk 00:11:30]}
{[%emt 00:00:40]} b3 {[%clk 00:14:04]} {[%emt 00:00:30]} 0-1

[Event "Schack-SM 2024: Mastarklassen"]
[Site "Fortnox Arena, Hejaregatan 5, Vaxjo, Sweden"]
[Date "2024.07.03"]
[Round "5.7"]
[White "Sundin, Emanuel"]
[Black "Landgren, Andreas"]
[Result "0-1"]
[TimeControl "90 minutes for 40 moves + 30 minutes for the rest of the game + 30 seconds per move from move one."]
[BlackTitle "FM"]
[WhiteElo "2165"]
[BlackElo "2243"]

1. e4 {[%clk 01:30:56]} {[%emt 00:00:03]} e5 {[%clk 01:30:51]} {[%emt
00:00:09]} 2. Nf3 {[%clk 01:29:24]} {[%emt 00:02:03]} Nc6 {[%clk 01:31:14]}
{[%emt 00:00:07]} 3. Bc4 {[%clk 01:24:10]} {[%emt 00:05:44]} Bc5 {[%clk
01:31:31]} {[%emt 00:00:12]} 4. c3 {[%clk 01:20:56]} {[%emt 00:03:45]} Nf6
{[%clk 01:31:51]} {[%emt 00:00:11]} 5. d4 {[%clk 01:17:04]} {[%emt 00:04:21]}
exd4 {[%clk 01:32:12]} {[%emt 00:00:10]} 6. e5 {[%clk 01:17:20]} {[%emt
00:00:12]} d5 {[%clk 01:30:53]} {[%emt 00:01:49]} 7. Bb5 {[%clk 01:17:42]}
{[%emt 00:00:08]} Ne4 {[%clk 01:31:08]} {[%emt 00:00:15]} 8. cxd4 {[%clk
01:18:03]} {[%emt 00:00:10]} Bb6 {[%clk 01:31:21]} {[%emt 00:00:17]} 9. Nc3
{[%clk 01:17:11]} {[%emt 00:01:22]} O-O {[%clk 01:31:35]} {[%emt 00:00:15]} 10.
Be3 {[%clk 01:16:58]} {[%emt 00:00:42]} Bg4 {[%clk 01:31:38]} {[%emt 00:00:27]}
11. h3 {[%clk 01:16:46]} {[%emt 00:00:42]} Bh5 {[%clk 01:31:58]} {[%emt
00:00:10]} 12. Qc2 {[%clk 01:16:24]} {[%emt 00:00:53]} Ba5 {[%clk 01:31:21]}
{[%emt 00:01:06]} 13. O-O {[%clk 01:14:23]} {[%emt 00:02:30]} Bxf3 {[%clk
01:28:44]} {[%emt 00:03:07]} 14. gxf3 {[%clk 01:13:10]} {[%emt 00:01:43]} Ng5
{[%clk 01:28:32]} {[%emt 00:00:43]} 15. Bxc6 {[%clk 00:56:18]} {[%emt
00:17:21]} Nxf3+ {[%clk 01:24:12]} {[%emt 00:04:50]} 16. Kh1 {[%clk 00:52:35]}
{[%emt 00:04:12]} bxc6 {[%clk 01:23:06]} {[%emt 00:01:37]} 17. Qf5 {[%clk
00:37:52]} {[%emt 00:15:13]} Nh4 {[%clk 01:08:47]} {[%emt 00:14:48]} 18. Qg4
{[%clk 00:30:07]} {[%emt 00:08:14]} f5 {[%clk 01:08:00]} {[%emt 00:01:18]} 19.
exf6 {[%clk 00:29:35]} {[%emt 00:01:02]} Qxf6 {[%clk 01:08:00]} {[%emt
00:00:29]} 20. Ne2 {[%clk 00:28:26]} {[%emt 00:01:39]} Qf3+ {[%clk 00:46:24]}
{[%emt 00:22:06]} 21. Qxf3 {[%clk 00:25:40]} {[%emt 00:03:16]} Rxf3 {[%clk
00:45:12]} {[%emt 00:01:42]} 22. Ng1 {[%clk 00:16:36]} {[%emt 00:09:34]} Rf7
{[%clk 00:44:42]} {[%emt 00:00:59]} 23. Rac1 {[%clk 00:07:17]} {[%emt
00:09:51]} Re8 {[%clk 00:42:35]} {[%emt 00:02:37]} 24. Rfd1 {[%clk 00:06:57]}
{[%emt 00:00:49]} Re6 {[%clk 00:27:48]} {[%emt 00:15:16]} 25. Rc2 {[%clk
00:06:33]} {[%emt 00:00:54]} Nf5 {[%clk 00:16:57]} {[%emt 00:11:22]} 26. Bf4
{[%clk 00:06:09]} {[%emt 00:00:53]} Nd6 {[%clk 00:17:02]} {[%emt 00:00:26]} 27.
Be5 {[%clk 00:05:47]} {[%emt 00:00:51]} Nc4 {[%clk 00:15:03]} {[%emt 00:02:28]}
28. Bg3 {[%clk 00:05:21]} {[%emt 00:00:58]} Bb6 {[%clk 00:13:47]} {[%emt
00:01:45]} 29. Kg2 {[%clk 00:04:39]} {[%emt 00:01:12]} Rfe7 {[%clk 00:10:22]}
{[%emt 00:03:55]} 30. b3 {[%clk 00:04:14]} {[%emt 00:00:56]} Na3 {[%clk
00:08:48]} {[%emt 00:02:04]} 31. Rcd2 {[%clk 00:03:51]} {[%emt 00:00:53]} Nb5
{[%clk 00:08:09]} {[%emt 00:01:09]} 32. Nf3 {[%clk 00:03:32]} {[%emt 00:00:48]}
Nc3 {[%clk 00:05:10]} {[%emt 00:03:30]} 33. Rc1 {[%clk 00:03:32]} {[%emt
00:00:31]} Ne4 {[%clk 00:03:26]} {[%emt 00:02:14]} 34. Re2 {[%clk 00:02:47]}
{[%emt 00:01:15]} Nxg3 {[%clk 00:03:11]} {[%emt 00:00:44]} 35. Rxe6 {[%clk
00:03:16]} {[%emt 00:00:01]} Rxe6 {[%clk 00:03:34]} {[%emt 00:00:07]} 36. Kxg3
{[%clk 00:03:41]} {[%emt 00:00:06]} a5 {[%clk 00:03:12]} {[%emt 00:00:51]} 37.
Rc2 {[%clk 00:01:43]} {[%emt 00:02:28]} Kf8 {[%clk 00:02:56]} {[%emt 00:00:46]}
38. Kf4 {[%clk 00:01:33]} {[%emt 00:00:40]} Re4+ {[%clk 00:01:53]} {[%emt
00:01:32]} 39. Kg3 {[%clk 00:02:02]} {[%emt 00:00:01]} Re6 {[%clk 00:02:09]}
{[%emt 00:00:15]} 40. Kf4 {[%clk 00:02:32]} Ke8 {[%clk 00:01:28]} {[%emt
00:01:11]} 41. Kg3 {[%clk 00:22:12]} {[%emt 00:10:50]} Rf6 {[%clk 00:27:45]}
{[%emt 00:04:13]} 42. Rd2 {[%clk 00:16:36]} {[%emt 00:06:06]} Kd7 {[%clk
00:25:53]} {[%emt 00:02:21]} 43. a3 {[%clk 00:14:56]} {[%emt 00:02:11]} c5
{[%clk 00:22:29]} {[%emt 00:03:53]} 44. dxc5 {[%clk 00:13:53]} {[%emt
00:01:33]} Bxc5 {[%clk 00:22:33]} {[%emt 00:00:27]} 45. Rxd5+ {[%clk 00:13:32]}
{[%emt 00:00:50]} Kc6 {[%clk 00:22:37]} {[%emt 00:00:27]} 46. Rg5 {[%clk
00:11:43]} {[%emt 00:02:18]} Bd6+ {[%clk 00:20:28]} {[%emt 00:02:39]} 47. Ne5+
{[%clk 00:08:28]} {[%emt 00:03:45]} Kd5 {[%clk 00:18:47]} {[%emt 00:02:12]} 48.
f4 {[%clk 00:08:20]} {[%emt 00:00:37]} Ke4 {[%clk 00:18:19]} {[%emt 00:00:59]}
49. Rg4 {[%clk 00:06:23]} {[%emt 00:02:28]} h5 {[%clk 00:12:46]} {[%emt
00:06:02]} 50. Rh4 {[%clk 00:06:14]} {[%emt 00:00:38]} g6 {[%clk 00:11:21]}
{[%emt 00:01:57]} 51. Kg2 {[%clk 00:04:09]} {[%emt 00:02:35]} Rxf4 {[%clk
00:08:55]} {[%emt 00:02:56]} 52. Rxf4+ {[%clk 00:03:55]} {[%emt 00:00:42]} Kxf4
{[%clk 00:09:17]} {[%emt 00:00:08]} 53. Nc4 {[%clk 00:04:04]} {[%emt 00:00:22]}
Ke4 {[%clk 00:09:18]} {[%emt 00:00:28]} 54. Nxa5 {[%clk 00:04:09]} {[%emt
00:00:27]} Bxa3 {[%clk 00:09:29]} {[%emt 00:00:19]} 55. Nc4 {[%clk 00:03:04]}
{[%emt 00:01:34]} Bc1 {[%clk 00:07:15]} {[%emt 00:02:44]} 56. Kf2 {[%clk
00:03:01]} {[%emt 00:00:33]} Kd4 {[%clk 00:07:09]} {[%emt 00:00:37]} 57. Ke2
{[%clk 00:02:48]} {[%emt 00:00:43]} Kc3 {[%clk 00:06:34]} {[%emt 00:01:05]} 58.
Ne5 {[%clk 00:02:53]} {[%emt 00:00:25]} g5 {[%clk 00:06:30]} {[%emt 00:00:35]}
59. Nd3 {[%clk 00:03:08]} {[%emt 00:00:13]} Ba3 {[%clk 00:06:16]} {[%emt
00:00:44]} 60. h4 {[%clk 00:00:57]} {[%emt 00:02:42]} g4 {[%clk 00:03:33]}
{[%emt 00:03:14]} 61. Nf4 {[%clk 00:01:08]} {[%emt 00:00:18]} Kxb3 {[%clk
00:03:24]} {[%emt 00:00:38]} 62. Nxh5 {[%clk 00:01:19]} {[%emt 00:00:20]} Be7
{[%clk 00:03:05]} {[%emt 00:00:48]} 63. Nf4 {[%clk 00:01:03]} {[%emt 00:00:46]}
Bxh4 {[%clk 00:02:17]} {[%emt 00:01:19]} 64. Ne6 {[%clk 00:01:11]} {[%emt
00:00:22]} Bg3 {[%clk 00:02:31]} {[%emt 00:00:16]} 65. Kd3 {[%clk 00:01:03]}
{[%emt 00:00:38]} Bd6 {[%clk 00:02:33]} {[%emt 00:00:27]} 66. Nd4+ {[%clk
00:00:34]} {[%emt 00:00:59]} Kb4 {[%clk 00:02:49]} {[%emt 00:00:13]} 67. Nf5
{[%clk 00:00:45]} {[%emt 00:00:19]} g3 {[%clk 00:02:21]} {[%emt 00:00:59]} 68.
Ne3 {[%clk 00:00:51]} {[%emt 00:00:23]} c5 {[%clk 00:02:29]} {[%emt 00:00:22]}
69. Nd5+ {[%clk 00:00:59]} {[%emt 00:00:22]} Kb3 {[%clk 00:02:47]} {[%emt
00:00:12]} 70. Ne3 {[%clk 00:01:11]} {[%emt 00:00:18]} Bf4 {[%clk 00:02:06]}
{[%emt 00:01:12]} 71. Ng2 {[%clk 00:01:13]} {[%emt 00:00:26]} c4 {[%clk
00:02:07]} {[%emt 00:00:30]} 72. Ke2 {[%clk 00:01:36]} {[%emt 00:00:07]} Bc7
{[%clk 00:02:06]} {[%emt 00:00:31]} 73. Ne3 {[%clk 00:01:22]} {[%emt 00:00:45]}
c3 {[%clk 00:02:01]} {[%emt 00:00:35]} 74. Kd3 {[%clk 00:00:35]} {[%emt
00:01:17]} Bf4 {[%clk 00:01:52]} {[%emt 00:00:38]} 75. Nc2 {[%clk 00:00:35]}
{[%emt 00:00:30]} g2 {[%clk 00:02:11]} {[%emt 00:00:11]} 76. Nd4+ {[%clk
00:00:51]} {[%emt 00:00:14]} Kb2 {[%clk 00:02:26]} {[%emt 00:00:15]} 77. Ne2
{[%clk 00:00:37]} {[%emt 00:00:44]} c2 {[%clk 00:02:38]} {[%emt 00:00:19]} 0-1